Cogmind - Beta 10.2 @@@ ROGUE MODE // 2021.10.24 @ 12:56:02 Player: Chydax Result: Destroyed by Y-45 Defender with Beam Rifle Performance ------------- Evolutions (1) 500 Regions Visited (3) 600 Robots Destroyed (12) 60 Value Destroyed (376) 376 Prototype IDs (1) 20 Alien Tech Used (0) 0 Bonus (0) 0 TOTAL SCORE: 1556 Bonus ------- None Cogmind --------- Core Integrity 0/400 Matter 46/300 Energy 472/500 System Corruption 5% Temperature Cool (9) Movement Walking (120) Location -9/Mines Parts ------- > --- POWER (1) -------- (None) > --- PROPULSION (2) --- Aluminum Leg Aluminum Leg > --- UTILITY (3) ------ Disposable Heat Sink High-capacity Battery > --- WEAPON (3) ------- (None) > --- INVENTORY (4) ---- Improved Heat Sink Light Armor Plating Trap Extractor Peak State ------------ > --- POWER ------------ Improved Ion Engine > --- PROPULSION ------- Light Treads Light Treads > --- UTILITY ---------- Disposable Heat Sink Small Storage Unit High-capacity Battery > --- WEAPON ----------- Spread Laser Autogun Improved Assault Rifle > --- INVENTORY -------- Light Ion Engine Improved Heat Sink Light Armor Plating Trap Extractor Small Laser Autogun [Rating: 16] Favorites ----------- Power Ion Engine Engine Ion Engine Propulsion Light Treads Treads Light Treads Leg Aluminum Leg Utility Small Storage Unit Device Disposable Heat Sink Storage Small Storage Unit Weapon Autogun Energy Gun Small Laser Ballistic Gun Autogun Build | -11 -10 -9 -9 ------- Run | Scr Mat Mat Min Slots Evolved 2 | . . 2 . Power . | . . . . Propulsion . | . . . . Utility 1 | . . 1 . Weapon 1 | . . 1 . Parts Attached 26 | 6 5 10 5 Power 4 | 1 . 2 1 Engine 4 | 1 . 2 1 Core . | . . . . Reactor . | . . . . Propulsion 4 | 2 . . 2 Treads 2 | 2 . . . Leg 2 | . . . 2 Wheel . | . . . . Hover . | . . . . Flight . | . . . . Utility 6 | 1 3 2 . Device 3 | . 1 2 . Storage 3 | 1 2 . . Processor . | . . . . Hackware . | . . . . Protection . | . . . . Artifact . | . . . . Weapon 12 | 2 2 6 2 Energy Gun 5 | 1 1 2 1 Energy Cannon . | . . . . Ballistic Gun 7 | 1 1 4 1 Ballistic Cannon . | . . . . Launcher . | . . . . Special Weapon . | . . . . Impact Weapon . | . . . . Slashing Weapon . | . . . . Piercing Weapon . | . . . . Special Melee Weapon . | . . . . Unidentified Prototypes 1 | . . 1 . Parts Lost 10 | . . 5 5 Power 2 | . . 1 1 Propulsion 2 | . . 2 . Utility 1 | . . . 1 Weapon 5 | . . 2 3 Highest Loss Streak 4 | . . 4 4 Average Slot Usage (%) 91 | . 98 96 68 Engine 11 | . 14 10 9 Treads 18 | . 28 20 . Device 7 | . . 11 11 Storage 23 | . 25 22 21 Energy Gun 10 | . 14 9 7 Ballistic Gun 18 | . 14 22 19 Naked Turns . | . . . . Heaviest Build 25 | 12 19 25 19 Greatest Support 40 | 40 40 40 20 Greatest Overweight (x) 7 | 2 . 7 6 Average Overweight (x) . | . . . 5 Largest Inventory Capacity 6 | 6 6 6 6 Average Capacity 5 | 5 6 6 5 Most Carried 6 | 3 6 6 5 Average Carried 4 | 1 4 5 3 Final Capacity 6 | 6 6 6 4 Final Carried 6 | 2 6 6 3 Class Distribution -------------------- 54% | Mutant 45% | Gunner Dominant Class ---------------- Mutant | -10/Materials Gunner | -9/Materials Gunner | -9/Mines Resources | -11 -10 -9 -9 ----------- Run | Scr Mat Mat Min Matter Collected 464 | 244 90 130 . Remotely . | . . . . Salvage Created 408 | . 100 308 . Parts 30 | . 2 28 . Haulers Intercepted . | . . . . Recyclers Shooed . | . . . . Parts Field Recycled . | . . . . Retrieved Matter . | . . . . Parts Self-Destructed . | . . . . Prevented . | . . . . Kills | -11 -10 -9 -9 ------- Run | Scr Mat Mat Min Combat Hostiles Destroyed 11 | . 2 9 . Guns 11 | . 2 9 . Classes Destroyed 4 | . 1 3 . Watcher 1 | . . 1 . Swarmer 3 | . . 3 . Grunt 6 | . 2 4 . Sentry 2 | . . 2 . Best Kill Streak 4 | . 2 4 . Combat Bots Only 4 | . 2 4 . Max Kills in Single Turn 1 | . 1 1 . Gunslinging . | . . . . Exploded . | . . . . Melee . | . . . . Uniques/NPCs Destroyed . | . . . . Combat | -11 -10 -9 -9 -------- Run | Scr Mat Mat Min Damage Taken 1669 | . 64 896 709 Core 404 | . . 128 276 Absorbed by Shields . | . . . . Core Remaining (%) 100 | 100 100 . . Volleys Fired 44 | . 7 30 7 Largest 3 | . 2 3 2 Hottest 111 | . 88 111 46 Shots Fired 106 | . 14 81 11 Gun 106 | . 14 81 11 Cannon . | . . . . Launcher . | . . . . Special . | . . . . Kinetic 77 | . 7 59 11 Thermal 29 | . 7 22 . Explosive . | . . . . Electromagnetic . | . . . . Robot Hit Streak 14 | . 6 14 4 Robot Miss Streak 5 | . 3 5 2 Penetration Max . | . . . . Secondary Targets 3 | . . 3 . Max Gunslinging Chain 1 | . . 1 . Shots Hit Robots 76 | . 10 59 7 Core Hits 27 | . 4 22 1 Critical Hits 2 | . . 2 . Critical Kills 1 | . . 1 . Critical Parts Destroyed 1 | . . 1 . Melee Attacks . | . . . . Impact . | . . . . Slashing . | . . . . Piercing . | . . . . Sneak Attacks . | . . . . Combat Hostiles . | . . . . Follow-up Attacks . | . . . . Damage Inflicted 876 | . 103 650 123 Guns 876 | . 103 650 123 Cannons . | . . . . Explosions . | . . . . Melee . | . . . . Ramming . | . . . . Kinetic 637 | . 45 469 123 Thermal 239 | . 58 181 . Explosive . | . . . . Electromagnetic . | . . . . Impact . | . . . . Slashing . | . . . . Piercing . | . . . . Highest Corruption 5 | . . 5 5 Average Corruption 5 | . . 5 5 Corruption Purged . | . . . . Effects 13 | . . 9 4 Message Errors 2 | . . 2 . Matter Fused 5 | . . 3 2 Heat Flow Errors 1 | . . . 1 Energy Discharges 2 | . . 2 . Data Loss (minor) 1 | . . . 1 Data Loss (major) 1 | . . 1 . Weapon Failures 1 | . . 1 . Overload Shots . | . . . . Overflow Damage . | . . . . Projectiles . | . . . . Explosions . | . . . . Melee . | . . . . Knockbacks . | . . . . Impact . | . . . . Kinetic . | . . . . Secondary . | . . . . Self-Inflicted Damage . | . . . . Shots . | . . . . Rammed . | . . . . Targets Rammed . | . . . . Kicked . | . . . . Crushed . | . . . . Highest Temperature 199 | . 88 199 171 Average Temperature 83 | . 38 101 45 Received Heat Transfer 606 | . 36 234 336 Siege Activations . | . . . . Robots Corrupted . | . . . . Combat Hostiles . | . . . . Parts Fried . | . . . . Impact Corruptions . | . . . . Robots Melted . | . . . . Combat Hostiles . | . . . . Parts Melted . | . . . . Heat Transferred 425 | . 130 295 . Parts Sabotaged . | . . . . Parts Stolen . | . . . . Parts Stripped . | . . . . Power Chain Reactions . | . . . . Missiles Intercepted . | . . . . Alert | -11 -10 -9 -9 ------- Run | Scr Mat Mat Min Peak Influence 305 | . 69 305 106 Initial 106 | . . 28 106 Average 75 | . 18 137 98 Maximum Alert Level 1 | . . 1 . Low Security (%) 90 | 100 100 72 100 Level 1 9 | . . 27 . Level 2 . | . . . . Level 3 . | . . . . Level 4 . | . . . . Level 5 . | . . . . High Security . | . . . . Max Security . | . . . . Squads Dispatched 3 | . . 3 . Investigation 3 | . . 3 . Extermination . | . . . . Reinforcement . | . . . . Assault . | . . . . Garrison . | . . . . Intercept . | . . . . Construction Impeded . | . . . . Haulers Reinforced . | . . . . Stealth | -11 -10 -9 -9 --------- Run | Scr Mat Mat Min Distress Signals 2 | . . 2 . Communications Jammed . | . . . . Distress Signals . | . . . . Times Spotted 24 | . 5 14 5 Peak Tracking Total 5 | . 2 5 5 Tactical Retreats . | . . . . Traps | -11 -10 -9 -9 ------- Run | Scr Mat Mat Min Traps Triggered . | . . . . Indirectly . | . . . . Trap Hack Attempts . | . . . . Triggered . | . . . . Disarmed . | . . . . Reprogrammed . | . . . . Reused . | . . . . Traps Extracted . | . . . . Installed . | . . . . Triggered . | . . . . Machines | -11 -10 -9 -9 ---------- Run | Scr Mat Mat Min Machines Disabled 1 | . . 1 . Max in Single Turn 1 | . . 1 . Machines Sabotaged . | . . . . Garrisons Compromised . | . . . . Overloaded Fab Kills . | . . . . Fab Network Shutdowns . | . . . . Hacking | -11 -10 -9 -9 --------- Run | Scr Mat Mat Min Machines Accessed 4 | . 1 3 . Terminals 4 | . 1 3 . Fabricators . | . . . . Repair Stations . | . . . . Recycling Units . | . . . . Scanalyzers . | . . . . Garrison Access . | . . . . Total Hacks 18 | . 4 14 . Successful 9 | . 2 7 . Failed 9 | . 2 7 . Catastrophic 1 | . . 1 . Database Lockouts . | . . . . Manual . | . . . . Terminals 18 | . 4 14 . Fabricators . | . . . . Repair Stations . | . . . . Recycling Units . | . . . . Scanalyzers . | . . . . Garrison Access . | . . . . Terminal Hacks 9 | . 2 7 . Record 7 | . . 7 . Alert Level 1 | . 1 . . Dispatch Records 1 | . 1 . . Fabricator Hacks . | . . . . Repair Station Hacks . | . . . . Recycling Unit Hacks . | . . . . Scanalyzer . | . . . . Garrison Access Hacks . | . . . . Unauthorized Hacks . | . . . . Terminals . | . . . . Fabricators . | . . . . Repair Stations . | . . . . Recycling Units . | . . . . Scanalyzers . | . . . . Garrison Access . | . . . . Data Cores Recovered . | . . . . Used . | . . . . Hacking Detections 4 | . 1 3 . Full Trace Events 4 | . 1 3 . Feedback Events . | . . . . Feedback Blocked . | . . . . Robot Schematics Acquired . | . . . . Robots Built . | . . . . Matter . | . . . . Time . | . . . . Total Robot Build Rating . | . . . . Part Schematics Acquired . | . . . . Parts Built . | . . . . Matter . | . . . . Time . | . . . . Total Part Build Rating . | . . . . Parts Repaired . | . . . . Time . | . . . . Parts Recycled . | . . . . Recycled Matter . | . . . . Retrieved Matter . | . . . . Retrieved Components . | . . . . Parts Scanalyzed . | . . . . Part Schematics Acquired . | . . . . Parts Damaged . | . . . . Bothacking | -11 -10 -9 -9 ------------ Run | Scr Mat Mat Min Used RIF Installer . | . . . . Robots Hacked . | . . . . Non-combat . | . . . . Combat . | . . . . Robot Hacks Applied . | . . . . Relay Couplers Released . | . . . . Robots Rewired . | . . . . Allies Hacked . | . . . . Hacks Repelled . | . . . . Allies | -11 -10 -9 -9 -------- Run | Scr Mat Mat Min Total Allies . | . . . . Largest Group . | . . . . Highest-Rated Group . | . . . . Highest-Rated Ally . | . . . . Total Orders . | . . . . Ally Attacks . | . . . . Total Damage . | . . . . Kills . | . . . . Allies Corrupted . | . . . . Allies Melted . | . . . . Intel | -11 -10 -9 -9 ------- Run | Scr Mat Mat Min Robot Analysis Total . | . . . . Derelict Logs Recovered . | . . . . Drone Launches . | . . . . Drone Recoveries . | . . . . Exploration | -11 -10 -9 -9 ------------- Run | Scr Mat Mat Min Turns Passed 883 | 92 300 321 170 Spaces Moved 392 | 55 165 124 48 Core 72 | 21 . 5 46 Treads 318 | 34 165 119 . Legs 2 | . . . 2 Wheels . | . . . . Hover . | . . . . Flight . | . . . . Fastest Speed 50 | 50 160 160 120 Average Speed 178 | 143 160 170 306 Slowest Speed 400 | 160 160 400 350 Overloaded Moves . | . . . . Propulsion Burnouts . | . . . . Robots Hopped . | . . . . Cave-ins Triggered . | . . . . Exploration Rate (%) 13 | 4 22 16 13 Regions Visited 3 Branch Regions 1 Pre-discovered Areas . | . . . . Known Exits Taken . | . . . . Unknown Exits Taken 3 | 1 1 1 . Scrap Searched . | . . . . Spaces Dug . | . . . . Terrain Destroyed . | . . . . Melee . | . . . . Projectile . | . . . . AOE . | . . . . Terrain Rammed . | . . . . Walls Destroyed . | . . . . Machines Disabled . | . . . . Actions | -11 -10 -9 -9 --------- Run | Scr Mat Mat Min Total 493 | 68 189 174 62 Wait 3 | . . 3 . Move 389 | 54 164 123 48 Hop . | . . . . Pick Up 23 | 8 9 5 1 Fast Attach 2 | . . 1 1 Attach 13 | 6 1 3 3 Detach . | . . . . Swap 11 | . 4 6 1 Drop 8 | . 4 3 1 Fire 44 | . 7 30 7 Melee . | . . . . Ram . | . . . . Kick . | . . . . Crush . | . . . . Escape Stasis . | . . . . Rewire . | . . . . Trap . | . . . . Miscellaneous . | . . . . Route ------- -11/Scrapyard -10/Materials -9/Materials -9/Mines History --------- Turn | Location | Event 18 | -11/Scrapyard | Discovered new exit (range 15) 93 | -11/Scrapyard | Entered Materials 327 | -10/Materials | Build established: Mutant 357 | -10/Materials | Discovered new exit (range 10) 393 | -10/Materials | Entered another Materials area 393 | -9/Materials | Evolved 2 slots: Utility x1, Weapon x1 578 | -9/Materials | Discovered new exit (range 7) 714 | -9/Materials | Entered Mines 744 | -9/Mines | Lost 4 parts (2n2w) 863 | -9/Mines | Core integrity fell below 50% 871 | -9/Mines | Core integrity fell below 20% 884 | -9/Mines | Destroyed by Y-45 Defender with Beam Rifle Last Messages --------------- 00708_ U-05 Engineer lays Concrete. 00713_ Imp. Assault Rifle destroyed. LOCATION=UNKNOWN GOAL=ESCAPE Something is scanning the area. 00715_ K-01 Serf cleans the Laser Drill. 00718_ Dropped Imp. Ion Engine. 00720_ K-01 Serf collects debris. 00731_ System corrupted: Heat flow error (+244). 00812_ System corrupted: Matter fused (-7). 00826_ Sml. Laser destroyed. 00856_ System corrupted: Component data lost. 00860_ Lgt. Ion Engine destroyed. 00862_ Autogun destroyed. 00875_ G-47 Trooper destroyed. 00876_ G-34 Mercenary destroyed. 00877_ Acquired Aluminum Leg. 00879_ Sml. Storage Unit destroyed. 00880_ Acquired Aluminum Leg. 00884_ System corrupted: Matter fused (-5). Map ----- +----------------------------------------------------+ | | | | | | | | | | | | | | | | | ?????????????????????????????????????????????? | | ?????????????????????????????????????????????? | | ?????????????????????????????????????????????? | | ?????????????????????????????????????????????? | | ?????????????????????????????????????????????? | | ?????????????????????????????????????????????? | | ???????????????###########????"" ????????????? | | ???????????????# """?????????????? | | ?????????####### ########????""?????????????? | | ?? #??????????? ?????????????? | | ?????????####### #??????????? ?????????????? | | ???????????????# ##?????????? ??????????????? | | ???????????????# ##???????## ##????????????? | | ???????????????# ###?????# ?????????????? | | ???????????????# !##????# ??????????????? | | ???????????????## g%=####?# #??????????????? | | ????????????????## [% ### #??????????????? | | ?????????????????# @ #??????????????? | | ????????????????# ## #??????????????? | | ??????????? Y ## ### #??????????????? | | ????????? Y ######## #??????????????? | | ??????? ##????# #??????????????? | | ??????? ##?????# ###??????????????? | | ??????? ## ##??????# #????????????????? | | ?????? ???## ????????# #????????????????? | | ???????????## #??????### ####?????????????? | | ????????????#####???????# * #?????????????? | | ????????????????????????# #?????????????? | | ????????????????????????# ???????????? | | ????????????????????????# """ ????????? | | ????????????????????????# """ # #####???????? | | ????????????????????????# """ # #???????????? | | ????????????????????????# #?#???????????? | | ????????????????????????########?????????????? | | ?????????????????????????????????????????????? | | ?????????????????????????????????????????????? | | ?????????????????????????????????????????????? | | ?????????????????????????????????????????????? | | ?????????????????????????????????????????????? | | ?????????????????????????????????????????????? | | ?????????????????????????????????????????????? | | ?????????????????????????????????????????????? | +----------------------------------------------------+ Best States ------------- Heat Dissipation 42 Coolant Potential 50 Energy Generation 12 Energy Capacity 665 Matter Stores 300 Matter Capacity 300 Sight Range 16 Terrain Scan Density 10 Evasion (%) 40 Recoil Reduction 2 Item Schematics ----------------- None Robot Schematics ------------------ None Fabricated ------------ Nothing Alien Tech Used ----------------- None Achievements -------------- None Challenges ------------ None Game ------ Seed HoverAssembledDisintegrator Manual? 0 Play Time 00:16:12 Cumulative 49.3 hours Start 2021.10.24 @ 12:40:14 End 2021.10.24 @ 12:56:02 Sessions 1 Manual Loads 0 Difficulty Rogue Special Mode None Game No. 43 Rogue 21 Adventurer 3 Explorer 19 Win Type - Total 0 Types 0/0/0/0/0/0/0/0/0 Lore% 25 Gallery% 35 Achievement% 28 Wizard Run 0 Options --------- ASCII 0 Keyboard 0 Movement Mouse Keybinds 0 Fullscreen 1 Font 18/X11Bold Map View 76x50 Tactical HUD 1 Map Filters NONE Filters NONE Steam 1 RUN: 005df21a-c7d4-42c7-9af8-c1298ec14ef7